bitfinex-derivatives/quotes_BTCF0:USTF0_20251204
["timestamp","ask_amount","ask_price","bid_price","bid_amount"]
[1764887116261,0.07563,92256.0,92255.0,0.0676075]
[1764887116965,0.07563,92256.0,92255.0,0.0404775]
[1764887117151,0.07563,92256.0,92255.0,0.0118375]
[1764887119054,0.07398,92247.0,92246.0,0.00027102]
[1764887119259,0.05728,92240.0,92239.0,0.01096771]
[1764887119459,0.05738814,92240.0,92239.0,0.04202773]
[1764887119656,0.05738814,92240.0,92239.0,0.03960771]
[1764887120259,0.05738814,92240.0,92239.0,0.06673771]
[1764887120859,0.05738814,92240.0,92239.0,0.06773771]
[1764887122463,0.05738814,92240.0,92239.0,0.01196771]
[1764887130772,0.05738814,92240.0,92220.0,0.07803972]
[1764887130974,0.05728,92217.0,92216.0,0.0666121]
[1764887131184,0.05728,92217.0,92216.0,0.05577]
[1764887131474,0.05728,92207.0,92206.0,0.06688443]
[1764887131874,0.05739993,92207.0,92206.0,0.06688443]
[1764887132790,0.05839993,92207.0,92206.0,0.07288443]
[1764887133377,0.05939993,92207.0,92206.0,0.09188443]
[1764887133587,0.05939993,92207.0,92206.0,0.10252848]
[1764887134993,0.05939993,92207.0,92206.0,0.07752848]
[1764887136491,0.06039993,92207.0,92206.0,0.07752848]
[1764887140291,0.06039993,92207.0,92206.0,0.00027113]
[1764887140596,0.06978,92192.0,92191.0,0.543185]
[1764887140788,0.06978,92192.0,92191.0,0.573085]
[1764887141789,0.06978,92192.0,92191.0,0.574085]
[1764887142591,0.06978,92192.0,92191.0,0.575085]
[1764887143595,0.06978,92192.0,92191.0,0.545185]
[1764887144094,0.06978,92192.0,92191.0,0.574775]
[1764887144293,0.07549,92200.0,92199.0,0.0703841]
[1764887145700,0.07649,92200.0,92199.0,0.0703841]
[1764887146193,0.05889,92200.0,92199.0,0.0703841]
[1764887146591,0.07607,92200.0,92199.0,0.0703841]
[1764887148699,0.05889,92200.0,92199.0,0.0703841]
[1764887149100,0.07607,92200.0,92199.0,0.0703841]
[1764887154910,0.07607,92200.0,92199.0,0.0108441]
[1764887155105,0.07607,92200.0,92199.0,0.0407941]
[1764887155909,0.07607,92200.0,92199.0,0.0703841]
[1764887161204,0.10007614,92200.0,92199.0,0.0703841]
[1764887161405,0.07607,92200.0,92199.0,0.0703841]
[1764887161709,0.10007621,92200.0,92199.0,0.0703841]
[1764887167618,0.10007621,92200.0,92199.0,0.0407941]
[1764887167809,0.10007621,92200.0,92199.0,0.0686841]
[1764887168005,0.09946621,92200.0,92199.0,0.0686441]
[1764887175619,0.08289621,92200.0,92199.0,0.0686441]
[1764887175819,0.02500621,92200.0,92199.0,0.0686441]
[1764887176022,0.001,92200.0,92199.0,0.0686441]
[1764887176233,0.01657,92224.0,92206.0,0.0686433]
[1764887176427,0.01657,92220.0,92206.0,0.57426332]
[1764887177125,0.07409,92220.0,92219.0,0.0686417]
[1764887177428,0.02415614,92220.0,92219.0,0.0686417]
[1764887177624,0.0001627,92229.0,92228.0,0.0818807]
[1764887177824,0.0001627,92229.0,92228.0,0.08430072]
[1764887178229,0.00028108,92229.0,92228.0,0.08430072]
[1764887179230,0.01657,92265.0,92245.0,0.0818787]
[1764887180325,0.00036807,92246.0,92245.0,0.0818787]
[1764887181226,0.05768261,92255.0,92254.0,0.0686376]
[1764887181434,0.05768261,92255.0,92254.0,0.07105762]
[1764887181919,0.00016261,92255.0,92254.0,0.07105762]
[1764887182122,0.05768261,92255.0,92254.0,0.07105762]
[1764887182431,0.06168261,92255.0,92254.0,0.0816132]
[1764887183435,0.06268261,92255.0,92254.0,0.0816132]
[1764887187728,0.07925261,92255.0,92254.0,0.0816132]
[1764887188034,0.07925261,92255.0,92254.0,0.0108376]
[1764887188333,0.07925261,92255.0,92254.0,0.0407476]
[1764887188539,0.07925261,92255.0,92254.0,0.0686376]
[1764887189130,0.02173261,92255.0,92251.0,0.02991]
[1764887189327,0.01657,92250.0,92246.0,0.0108385]
[1764887189525,0.01657,92250.0,92236.0,0.00016261]
[1764887189526,0.05752,92237.0,92236.0,0.06880231]
[1764887189725,0.05752,92237.0,92236.0,0.07122233]
[1764887189931,0.05752,92237.0,92236.0,0.01100231]
[1764887191036,0.05752,92237.0,92236.0,0.01300231]
[1764887191426,0.05752,92237.0,92236.0,0.01100231]
[1764887193531,0.05752,92237.0,92236.0,0.06880231]
[1764887196944,0.05752,92237.0,92236.0,0.01100231]
[1764887197727,0.05752,92237.0,92236.0,0.00016261]
[1764887200938,0.05752,92237.0,92236.0,0.05760261]
[1764887205335,0.05752,92237.0,92236.0,0.06844231]
[1764887205942,0.02777,92237.0,92236.0,0.06844231]
[1764887206247,0.05743,92237.0,92236.0,0.06844231]
[1764887207238,0.07596,92245.0,92244.0,0.0699688]
[1764887207440,0.0998308,92245.0,92244.0,0.07238882]
[1764887207640,0.19333745,92260.0,92254.0,0.0699676]
[1764887207641,0.05955261,92255.0,92254.0,0.0699676]
[1764887207952,0.0834259,92255.0,92254.0,0.0699676]
[1764887209348,0.0884259,92255.0,92254.0,0.0699676]
[1764887209849,0.0844259,92255.0,92254.0,0.0699676]
[1764887210044,0.0864259,92255.0,92254.0,0.0699676]
[1764887210848,0.0864259,92255.0,92254.0,0.0108376]
[1764887211243,0.0864259,92255.0,92254.0,0.0699676]
[1764887213044,0.0864259,92255.0,92254.0,0.0403876]
[1764887213349,0.0864259,92255.0,92254.0,0.0108376]
[1764887214153,0.0864259,92255.0,92254.0,0.02955]
[1764887214452,0.0864259,92255.0,92254.0,0.05913]
[1764887215844,0.05939,92253.0,92252.0,0.0108377]
[1764887216039,0.08326329,92253.0,92252.0,0.0108377]
[1764887217044,0.07636,92238.0,92237.0,0.0699695]
[1764887217446,0.05939,92238.0,92237.0,0.0699695]
[1764887218556,0.05939,92238.0,92237.0,0.5699695]
[1764887219057,0.06039,92238.0,92237.0,0.5699695]
[1764887219450,0.07736,92238.0,92237.0,0.5699695]
[1764887222559,0.06039,92238.0,92237.0,0.5699695]
[1764887225658,0.07665,92238.0,92237.0,0.5699695]
[1764887228959,0.07665,92238.0,92237.0,0.5403895]
[1764887229153,0.07665,92238.0,92237.0,0.5699795]
[1764887230159,0.07665,92238.0,92237.0,0.55914]
[1764887230359,0.0874895,92238.0,92237.0,0.5]
[1764887230761,0.05763,92237.0,92236.0,0.00016261]
[1764887231262,0.08154328,92237.0,92236.0,0.00016261]
[1764887231659,0.05763,92229.0,92228.0,0.0108406]
[1764887231859,0.01626,92226.0,92225.0,0.039181]
[1764887232065,0.01626,92226.0,92225.0,0.068771]
[1764887232066,0.07389,92226.0,92225.0,0.068771]
[1764887232966,0.07389,92226.0,92225.0,0.069771]
[1764887233359,0.07389,92226.0,92225.0,0.071771]
[1764887234562,0.05763,92226.0,92225.0,0.071771]
[1764887237661,0.05763,92226.0,92225.0,0.06093]
[1764887237867,0.05763,92226.0,92225.0,0.03134]
[1764887238067,0.05763,92226.0,92225.0,0.06093]
[1764887240375,0.05763,92226.0,92225.0,0.003]
[1764887242082,0.05763,92226.0,92225.0,0.06093]
[1764887251990,0.05763,92226.0,92225.0,0.071771]
[1764887252597,0.25042006,92235.0,92234.0,0.06877]
[1764887252791,0.09794184,92235.0,92234.0,0.07119002]
[1764887253694,0.02405184,92235.0,92234.0,0.07119002]
[1764887253894,0.00016261,92235.0,92234.0,0.07119002]
[1764887256788,0.00016261,92235.0,92234.0,0.07219002]
[1764887257398,0.00016261,92235.0,92234.0,0.07119002]
[1764887259502,0.13357534,92265.0,92249.0,0.0108382]
[1764887259694,0.23363745,92260.0,92259.0,0.067617]
[1764887259895,0.08120638,92260.0,92259.0,0.067617]
[1764887260600,0.05727,92260.0,92259.0,0.067617]
[1764887260796,0.07527,92260.0,92259.0,0.067617]
[1764887260993,0.07627,92260.0,92259.0,0.067617]
[1764887262303,0.08027,92260.0,92259.0,0.067617]
[1764887268197,0.08027,92260.0,92259.0,0.010837]
[1764887268601,0.05737,92251.0,92250.0,0.06797071]
[1764887270297,0.05937,92251.0,92250.0,0.06797071]
[1764887271715,0.05737,92251.0,92250.0,0.06797071]
[1764887271905,0.06037,92251.0,92250.0,0.06797071]
[1764887272101,0.06137,92251.0,92250.0,0.06797071]
[1764887278412,0.06137,92251.0,92250.0,0.01100071]
[1764887279915,0.06137,92251.0,92250.0,0.00016261]
[1764887280115,0.072208,92251.0,92250.0,0.00016261]
[1764887280513,0.072208,92251.0,92250.0,0.02772261]
[1764887281215,0.09615528,92251.0,92250.0,0.02772261]
[1764887283021,0.06137,92251.0,92250.0,0.05713261]
[1764887283218,0.004,92251.0,92250.0,0.05713261]
[1764887284822,0.004,92251.0,92250.0,0.55713261]
[1764887285018,0.07345,92264.0,92263.0,0.05768]
[1764887285224,0.09742641,92264.0,92263.0,0.05768]
[1764887286311,0.02397641,92264.0,92263.0,0.05768]
[1764887286515,0.00016261,92269.0,92268.0,0.05768]
[1764887286715,0.02414393,92269.0,92268.0,0.06010002]
[1764887287715,0.08095393,92269.0,92268.0,0.06010002]
[1764887287917,0.08295393,92269.0,92268.0,0.07093602]
[1764887288116,0.06179393,92269.0,92268.0,0.07093602]
[1764887288324,0.08895393,92269.0,92268.0,0.07093602]
[1764887288916,0.08895393,92269.0,92268.0,0.06010002]
[1764887290122,0.03214393,92269.0,92268.0,0.06010002]
[1764887290315,0.08895393,92269.0,92268.0,0.06010002]
[1764887292325,0.08895393,92269.0,92268.0,0.05768]
[1764887292528,0.08895393,92269.0,92257.0,0.06927412]
[1764887292529,0.05681,92265.0,92264.0,0.0685164]
[1764887293828,0.05781,92265.0,92264.0,0.0685164]
[1764887294125,0.06281,92265.0,92264.0,0.0685164]
[1764887296027,0.06281,92265.0,92264.0,0.0108364]
[1764887296422,0.06281,92265.0,92264.0,0.0402064]
[1764887296630,0.06281,92265.0,92264.0,0.0685164]
[1764887298020,0.05681,92254.0,92253.0,0.11611682]
[1764887298220,0.05681,92254.0,92253.0,0.02937]
[1764887298418,0.05681,92254.0,92253.0,0.0402077]
[1764887298628,0.05681,92251.0,92250.0,0.01100061]
[1764887298824,0.05681,92251.0,92250.0,0.04037061]
[1764887299333,0.05681,92251.0,92250.0,0.06868061]
[1764887300532,0.05881,92251.0,92250.0,0.06868061]
[1764887300924,0.05781,92251.0,92250.0,0.06868061]
[1764887301222,0.06081,92251.0,92250.0,0.06868061]
[1764887302324,0.05981,92251.0,92250.0,0.06868061]
[1764887302525,0.06081,92251.0,92250.0,0.06868061]
[1764887302833,0.05781,92251.0,92250.0,0.06868061]
[1764887303017,0.06081,92251.0,92250.0,0.06868061]
[1764887303424,0.05981,92251.0,92250.0,0.06868061]
[1764887304820,0.003,92251.0,92250.0,0.08443061]
[1764887305331,0.05981,92251.0,92250.0,0.08443061]
[1764887305642,0.05981,92251.0,92250.0,0.06868061]
[1764887305937,0.05681,92251.0,92250.0,0.06868061]
[1764887306135,0.002,92251.0,92250.0,0.08443061]
[1764887306321,0.002,92251.0,92250.0,0.58443061]
[1764887306729,0.07449,92268.0,92267.0,0.0685161]
[1764887306928,0.09833349,92268.0,92267.0,0.0685161]
[1764887308637,0.10033349,92268.0,92267.0,0.0685161]
[1764887309037,0.10533349,92268.0,92267.0,0.0685161]
[1764887310733,0.02716,92253.0,92252.0,0.05843682]
[1764887311034,0.07184,92255.0,92254.0,0.0108376]
[1764887311435,0.09568617,92255.0,92254.0,0.0108376]
[1764887312130,0.09668617,92255.0,92254.0,0.0108376]
[1764887312733,0.09768617,92255.0,92254.0,0.0108376]
[1764887313132,0.09968617,92255.0,92254.0,0.0108376]
[1764887314240,0.09868617,92255.0,92254.0,0.0695176]
[1764887314443,0.07584,92255.0,92254.0,0.0695176]
[1764887314636,0.07584,92255.0,92254.0,0.0402076]
[1764887314946,0.07584,92255.0,92254.0,0.0695176]
[1764887315245,0.05881,92255.0,92254.0,0.0695176]
[1764887315445,0.05981,92255.0,92254.0,0.0695176]
[1764887316747,0.05781,92255.0,92254.0,0.0695176]
[1764887316949,0.05881,92255.0,92254.0,0.0695176]
[1764887317831,0.05781,92255.0,92254.0,0.0695176]
[1764887318036,0.05881,92255.0,92254.0,0.0695176]
[1764887318237,0.05881,92255.0,92254.0,0.0402076]
[1764887318747,0.05881,92255.0,92254.0,0.0695176]
[1764887320049,0.05881,92255.0,92254.0,0.0108376]
[1764887320255,0.05881,92255.0,92254.0,0.0381776]
[1764887320953,0.05881,92255.0,92254.0,0.0674876]
[1764887322261,0.08255246,92255.0,92254.0,0.0674876]
[1764887323061,0.08255246,92255.0,92254.0,0.0381776]
[1764887323262,0.09991246,92255.0,92254.0,0.0381776]
[1764887323466,0.09991246,92255.0,92254.0,0.0108376]
[1764887323961,0.09991246,92255.0,92254.0,0.0381776]
[1764887324557,0.09991246,92255.0,92254.0,0.0108376]
[1764887325056,0.0579,92251.0,92250.0,0.02750261]
[1764887325257,0.02795,92251.0,92250.0,0.06765071]
[1764887325561,0.0579,92251.0,92250.0,0.06765071]
[1764887326166,0.0579,92251.0,92250.0,0.03834071]
[1764887326364,0.0579,92251.0,92250.0,0.06765071]
[1764887326561,0.0589,92251.0,92250.0,0.06765071]
[1764887327571,0.002,92251.0,92250.0,0.08400071]
[1764887328063,0.02895,92251.0,92250.0,0.08400071]
[1764887328463,0.03095,92251.0,92250.0,0.08400071]
[1764887328964,0.02995,92251.0,92250.0,0.08400071]
[1764887329760,0.02895,92251.0,92250.0,0.08400071]
[1764887330657,0.001,92251.0,92250.0,0.08400071]
[1764887330852,0.02825,92251.0,92250.0,0.08400071]
[1764887332264,0.05698,92251.0,92250.0,0.08400071]
[1764887332465,0.05698,92251.0,92250.0,0.06765071]
[1764887333067,0.05698,92251.0,92250.0,0.01100071]
[1764887333855,0.05698,92251.0,92250.0,0.06960071]
[1764887337269,0.08071591,92251.0,92250.0,0.06960071]
[1764887343075,0.08071591,92251.0,92250.0,0.01100071]
[1764887343667,0.08071591,92251.0,92250.0,0.04077071]
[1764887343863,0.07508,92245.0,92242.0,0.0108389]
[1764887344068,0.05744,92243.0,92242.0,0.0108389]
[1764887344268,0.08117591,92243.0,92242.0,0.0108389]
[1764887345172,0.08117591,92243.0,92242.0,0.0414389]
[1764887346073,0.08117591,92243.0,92242.0,0.0689589]
[1764887346579,0.08217591,92243.0,92242.0,0.0118389]
[1764887347679,0.08317591,92243.0,92242.0,0.0108389]
[1764887350481,0.05944,92243.0,92242.0,0.0108389]
[1764887350866,0.05944,92243.0,92238.0,0.01092066]
[1764887350867,0.02989,92236.0,92235.0,0.05843682]
[1764887351067,0.05744,92236.0,92235.0,0.0108399]
[1764887351275,0.05744,92236.0,92235.0,0.0404399]
[1764887351483,0.05744,92236.0,92235.0,0.0679599]
[1764887353080,0.05744,92236.0,92235.0,0.0689599]
[1764887353478,0.05744,92236.0,92235.0,0.0795938]
[1764887354583,0.02989,92236.0,92235.0,0.0795938]
[1764887354778,0.05744,92236.0,92235.0,0.0795938]
[1764887355085,0.02989,92236.0,92235.0,0.0795938]
[1764887355381,0.02989,92236.0,92235.0,0.0956438]
[1764887355579,0.05744,92236.0,92235.0,0.0956438]
[1764887355786,0.02989,92236.0,92235.0,0.0956438]
[1764887355978,0.07508,92245.0,92244.0,0.0679588]
[1764887356183,0.09881168,92245.0,92244.0,0.0679588]
[1764887356983,0.09981168,92245.0,92244.0,0.0679588]
[1764887357176,0.10081168,92245.0,92244.0,0.0679588]
[1764887365480,0.08317168,92245.0,92244.0,0.0679588]
[1764887377700,0.08217168,92245.0,92244.0,0.0679588]
[1764887378000,0.08317168,92245.0,92244.0,0.0679588]
[1764887379103,0.08217168,92245.0,92244.0,0.0679588]
[1764887379402,0.08317168,92245.0,92244.0,0.0679588]
[1764887382407,0.08117168,92245.0,92244.0,0.0679588]
[1764887382697,0.08317168,92245.0,92244.0,0.0679588]
[1764887384297,0.08117168,92245.0,92244.0,0.0679588]
[1764887384503,0.08317168,92245.0,92244.0,0.0679588]
[1764887393205,0.08217168,92245.0,92244.0,0.0679588]
[1764887393395,0.08317168,92245.0,92244.0,0.0679588]
[1764887394806,0.08217168,92245.0,92244.0,0.0679588]
[1764887395108,0.08317168,92245.0,92244.0,0.0679588]
[1764887397011,0.08217168,92245.0,92244.0,0.0679588]
[1764887397196,0.08317168,92245.0,92244.0,0.0679588]
[1764887397602,0.08217168,92245.0,92244.0,0.0679588]
[1764887397802,0.08317168,92245.0,92244.0,0.0679588]
[1764887399315,0.08217168,92245.0,92244.0,0.0679588]
[1764887399500,0.08317168,92245.0,92244.0,0.0679588]
[1764887400008,0.08217168,92245.0,92244.0,0.0679588]
[1764887400414,0.08317168,92245.0,92244.0,0.0679588]
[1764887400805,0.08217168,92245.0,92244.0,0.0679588]
[1764887401007,0.08317168,92245.0,92244.0,0.0679588]
[1764887402312,0.08217168,92245.0,92244.0,0.0679588]
[1764887402516,0.08317168,92245.0,92244.0,0.0679588]
[1764887403016,0.08217168,92245.0,92244.0,0.0679588]
[1764887403202,0.08317168,92245.0,92244.0,0.0679588]
[1764887403907,0.08217168,92245.0,92244.0,0.0679588]
[1764887404109,0.08317168,92245.0,92244.0,0.0679588]
[1764887404312,0.02473168,92245.0,92244.0,0.0840088]
[1764887404620,0.00016261,92252.0,92251.0,0.067898]
[1764887404815,0.05909,92271.0,92270.0,0.0678957]
[1764887406300,0.06609,92271.0,92270.0,0.0678957]
[1764887409419,0.007,92271.0,92270.0,0.0678957]
[1764887409717,0.00016261,92280.0,92279.0,0.0678947]
[1764887409919,0.03012261,92280.0,92279.0,0.07031472]
[1764887410312,0.00016261,92280.0,92279.0,0.07031472]
[1764887410505,0.03012261,92280.0,92279.0,0.07031472]
[1764887410816,0.05925261,92280.0,92279.0,0.07031472]
[1764887411005,0.00716261,92280.0,92279.0,0.07031472]
[1764887411604,0.19296354,92300.0,92279.0,0.07031472]
[1764887411811,0.19296354,92300.0,92285.0,0.08403402]
[1764887412121,0.0302309,92286.0,92285.0,0.08403402]
[1764887412324,0.0593609,92286.0,92285.0,0.08403402]
[1764887412518,0.05909,92274.0,92272.0,0.058531]
[1764887412817,0.05909,92275.0,92274.0,0.0678953]
[1764887413019,0.07568,92275.0,92274.0,0.0678953]
[1764887413215,0.07568,92262.0,92261.0,0.05722261]
[1764887413422,0.07568,92262.0,92261.0,0.07047943]
[1764887413632,0.07568,92262.0,92261.0,0.03816941]
[1764887413811,0.07568,92262.0,92261.0,0.01099941]
[1764887414317,0.07568,92262.0,92261.0,0.03816941]
[1764887414818,0.07568,92262.0,92261.0,0.06805941]
[1764887415611,0.06009,92262.0,92261.0,0.06805941]
[1764887415816,0.001,92262.0,92261.0,0.06805941]
[1764887416022,0.001,92262.0,92261.0,0.07105941]
[1764887417425,0.001,92262.0,92261.0,0.57105941]
[1764887417724,0.07568,92280.0,92279.0,0.0678947]
[1764887417925,0.05909,92280.0,92279.0,0.0678947]
[1764887418117,0.0002709,92286.0,92281.0,0.05706]
[1764887418317,0.0002709,92286.0,92281.0,0.05948002]
[1764887418829,0.0002709,92286.0,92285.0,0.05706]
[1764887419033,0.0002709,92286.0,92285.0,0.05948002]
[1764887419530,0.05909,92316.0,92315.0,0.0678905]
[1764887419719,0.07568,92316.0,92315.0,0.0108305]
[1764887420526,0.05909,92307.0,92306.0,0.06805402]
[1764887420726,0.05909,92307.0,92306.0,0.00016252]
[1764887422128,0.06309,92307.0,92306.0,0.00016252]
[1764887425233,0.06309,92307.0,92306.0,0.00258254]
[1764887427125,0.06309,92307.0,92306.0,0.05964254]
[1764887428136,0.05909,92307.0,92306.0,0.05964254]
[1764887428523,0.07482,92316.0,92315.0,0.05802]
[1764887428729,0.07482,92316.0,92315.0,0.06044002]
[1764887429325,0.07482,92316.0,92315.0,0.07127052]
[1764887429725,0.07482,92316.0,92315.0,0.07527052]
[1764887430535,0.05823,92316.0,92315.0,0.07527052]
[1764887430931,0.07466,92316.0,92315.0,0.07527052]
[1764887433127,0.01659,92330.0,92321.0,0.0688498]
[1764887433340,0.01643,92337.0,92324.0,0.07126942]
[1764887433835,0.02918252,92325.0,92324.0,0.07126942]
[1764887434224,0.03018252,92325.0,92324.0,0.07126942]
[1764887434432,0.05939252,92325.0,92324.0,0.07126942]
[1764887435535,0.05939252,92325.0,92324.0,0.07326942]
[1764887439030,0.00116252,92325.0,92324.0,0.07326942]
[1764887439430,0.02843252,92325.0,92324.0,0.07326942]
[1764887439838,0.05839252,92325.0,92324.0,0.07326942]
[1764887440334,0.00116252,92325.0,92324.0,0.07326942]
[1764887440737,0.00032542,92325.0,92324.0,0.07326942]
[1764887441334,0.00032542,92325.0,92324.0,0.57326942]
[1764887443143,0.02759542,92325.0,92324.0,0.57326942]
[1764887443842,0.05755542,92325.0,92324.0,0.57326942]
[1764887445131,0.02759542,92325.0,92324.0,0.57326942]
[1764887445337,0.00032542,92325.0,92324.0,0.57326942]
[1764887445733,0.02759542,92325.0,92324.0,0.57326942]
[1764887446644,0.05755542,92325.0,92324.0,0.57326942]
[1764887452349,0.00032542,92325.0,92324.0,0.57326942]
[1764887457540,0.00016252,92334.0,92325.0,0.0108293]
[1764887457743,0.00016252,92334.0,92333.0,0.07027842]
[1764887457943,0.07603252,92334.0,92333.0,0.07027842]
[1764887458148,0.07603252,92334.0,92333.0,0.57327842]
[1764887458750,0.02985252,92334.0,92333.0,0.57327842]
[1764887458944,0.00016252,92334.0,92333.0,0.57327842]
[1764887459445,0.00016252,92334.0,92333.0,0.57027842]
[1764887459750,0.00016252,92334.0,92333.0,1.08035842]
[1764887460457,0.02985252,92334.0,92333.0,1.08035842]
[1764887461053,0.00016252,92334.0,92333.0,1.08035842]
[1764887461446,0.05934252,92334.0,92333.0,1.08035842]
[1764887465757,0.05934252,92334.0,92333.0,1.08027842]
[1764887467259,0.05934252,92334.0,92333.0,1.13841218]
[1764887467655,0.00016252,92334.0,92333.0,1.13841218]
[1764887468750,0.00016252,92334.0,92333.0,1.08027842]
[1764887470953,0.02874,92350.0,92349.0,0.05682]
[1764887471153,0.02298295,92350.0,92349.0,0.5705665]
[1764887471452,0.24852866,92360.0,92359.0,0.0676453]
[1764887471650,0.09547649,92360.0,92359.0,0.0676453]
[1764887473051,0.09547649,92360.0,92359.0,0.0686453]
[1764887473749,0.09547649,92360.0,92359.0,0.001]
[1764887473952,0.09547649,92360.0,92359.0,0.00342002]
[1764887473953,0.09647649,92360.0,92359.0,0.00342002]
[1764887474156,0.09647649,92360.0,92359.0,0.03188002]
[1764887474861,0.09647649,92360.0,92359.0,0.001]
[1764887475062,0.09647649,92360.0,92359.0,0.00342002]
[1764887475661,0.09647649,92360.0,92359.0,0.001]
[1764887475851,0.09647649,92360.0,92359.0,0.00342002]
[1764887476251,0.09647649,92360.0,92359.0,0.001]
[1764887476460,0.09647649,92360.0,92359.0,0.00342002]
[1764887476659,0.09647649,92360.0,92359.0,0.001]
[1764887476855,0.05597,92351.0,92350.0,0.01098883]
[1764887477056,0.07893695,92351.0,92350.0,0.00016243]
[1764887477561,0.03379325,92351.0,92346.0,0.0108267]
[1764887477758,0.05597,92347.0,92346.0,0.0108267]
[1764887477964,0.05597,92333.0,92332.0,0.3599685]
[1764887478263,0.05597,92333.0,92332.0,0.0676485]
[1764887478956,0.05597,92333.0,92332.0,0.07870471]
[1764887479356,0.05597,92333.0,92332.0,0.0676485]
[1764887479752,0.05597,92333.0,92325.0,0.50292]
[1764887480062,0.05597,92326.0,92325.0,0.5705693]
[1764887481357,0.05597,92326.0,92325.0,0.58144607]
[1764887481758,0.01653,92328.0,92323.0,0.05698243]
[1764887481759,0.05597,92324.0,92323.0,0.05698243]
[1764887482154,0.05597,92324.0,92323.0,0.06769705]
[1764887482870,0.05597,92324.0,92323.0,0.56769705]
[1764887483369,0.05597,92324.0,92323.0,0.57169705]
[1764887490177,0.0725,92334.0,92333.0,0.05682]
[1764887491478,0.0725,92334.0,92333.0,0.05782]
[1764887491479,0.0735,92334.0,92333.0,0.05782]
[1764887492479,0.0735,92334.0,92333.0,0.05682]
[1764887492682,0.0735,92334.0,92333.0,0.05882]
[1764887493983,0.0735,92334.0,92333.0,0.05682]
[1764887494175,0.0735,92334.0,92333.0,0.05882]
[1764887495381,0.05697,92334.0,92333.0,0.05882]
[1764887501186,0.05697,92334.0,92333.0,0.002]
[1764887501578,0.07999906,92334.0,92333.0,0.002]
[1764887504883,0.02402906,92334.0,92323.0,0.01099183]
[1764887505081,0.05829,92317.0,92316.0,0.0408103]
[1764887505588,0.05829,92309.0,92308.0,0.05827662]
[1764887505780,0.05829,92304.0,92303.0,0.0689918]
[1764887506179,0.05829,92304.0,92303.0,0.07992474]
[1764887506991,0.05829,92304.0,92303.0,0.08892474]
[1764887507379,0.05829,92304.0,92303.0,0.07992474]
[1764887507590,0.05829,92304.0,92303.0,0.08292474]
[1764887508287,0.05829,92304.0,92303.0,0.06920346]
[1764887511285,0.05829,92304.0,92303.0,0.03145]
[1764887511890,0.05829,92304.0,92303.0,0.05849]
[1764887512480,0.05829,92304.0,92303.0,0.06929114]
[1764887512681,0.05829,92304.0,92303.0,0.06829114]
[1764887514478,0.02728243,92313.0,92312.0,0.0663208]
[1764887514682,0.05542243,92313.0,92312.0,0.06874082]
[1764887515690,0.05642243,92313.0,92312.0,0.06874082]
[1764887516087,0.00116243,92313.0,92312.0,0.06874082]
[1764887516483,0.00016243,92313.0,92312.0,0.06874082]
[1764887516792,0.00016243,92313.0,92312.0,0.57074082]
[1764887517384,0.00016243,92313.0,92312.0,0.57274082]
[1764887518784,0.00016243,92313.0,92312.0,0.56874082]
[1764887518991,0.00016243,92313.0,92312.0,0.57274082]
[1764887524988,0.02828243,92313.0,92312.0,0.57274082]
[1764887526203,0.05707243,92313.0,92312.0,0.57274082]
[1764887529401,0.05707243,92313.0,92312.0,0.63101744]
[1764887532307,0.05707243,92313.0,92312.0,0.57274082]
[1764887535302,0.00016243,92313.0,92312.0,0.57274082]
[1764887535603,0.05691,92340.0,92339.0,0.0689677]
[1764887535803,0.08007096,92340.0,92339.0,0.0689677]
[1764887536000,0.05691,92340.0,92339.0,0.0689677]
[1764887536406,0.0739,92340.0,92339.0,0.0689677]
[1764887537307,0.0759,92340.0,92339.0,0.0689677]
[1764887537704,0.0779,92340.0,92339.0,0.0689677]
[1764887538104,0.0759,92340.0,92339.0,0.0689677]
[1764887538312,0.0759,92340.0,92339.0,0.0709677]
[1764887538607,0.05891,92340.0,92339.0,0.0709677]
[1764887539405,0.05791,92340.0,92339.0,0.0709677]
[1764887539605,0.0749,92340.0,92339.0,0.0709677]
[1764887539907,0.0749,92340.0,92339.0,0.0689677]
[1764887540207,0.0739,92340.0,92339.0,0.0709677]
[1764887545109,0.05691,92340.0,92339.0,0.0709677]
[1764887551218,0.0739,92340.0,92339.0,0.0709677]
[1764887552313,0.0739,92340.0,92339.0,0.06014]
[1764887552511,0.0739,92340.0,92339.0,0.0709677]
[1764887561217,0.0739,92340.0,92339.0,0.0128277]
[1764887561720,0.0739,92340.0,92339.0,0.0404777]
[1764887562423,0.09807745,92340.0,92339.0,0.0702577]
[1764887562616,0.09807745,92340.0,92339.0,0.0682577]
[1764887562816,0.09807745,92340.0,92339.0,0.0702577]
[1764887565712,0.02417745,92340.0,92339.0,0.0702577]
[1764887567724,0.08231745,92340.0,92339.0,0.0702577]
[1764887568431,0.08231745,92340.0,92339.0,0.12850843]
[1764887569325,0.08231745,92340.0,92339.0,0.0702577]
[1764887577924,0.05914,92340.0,92339.0,0.12850843]
[1764887581738,0.001,92340.0,92339.0,0.0702577]
[1764887581938,0.05914,92340.0,92339.0,0.0702577]
[1764887582234,0.03002,92340.0,92339.0,0.0702577]
[1764887582538,0.05914,92340.0,92339.0,0.0702577]
[1764887593853,0.001,92340.0,92339.0,0.0702577]
[1764887594260,0.02917,92340.0,92339.0,0.0702577]
[1764887594856,0.02917,92340.0,92339.0,0.5702577]
[1764887596458,0.0568,92340.0,92339.0,0.5702577]
[1764887598349,0.02917,92340.0,92339.0,0.5702577]
[1764887599162,0.001,92340.0,92339.0,0.5702577]
[1764887599660,0.02917,92340.0,92339.0,0.5702577]
[1764887601156,0.001,92340.0,92339.0,0.5702577]
[1764887603355,0.02917,92340.0,92339.0,0.5702577]
[1764887605261,0.001,92340.0,92339.0,0.5702577]
[1764887605456,0.02917,92340.0,92339.0,0.5702577]
[1764887605654,0.001,92340.0,92339.0,0.5702577]
[1764887605850,0.00016243,92349.0,92348.0,0.05679]
[1764887606065,0.00016243,92349.0,92348.0,0.57267662]
[1764887606264,0.0558,92364.0,92363.0,0.0676148]
[1764887606467,0.07880361,92364.0,92363.0,0.0676148]
[1764887606965,0.00027066,92366.0,92365.0,0.05679]
[1764887607162,0.07245,92384.0,92383.0,0.05679]
[1764887607476,0.09542791,92384.0,92383.0,0.0676125]
[1764887608666,0.09742791,92384.0,92383.0,0.0676125]
[1764887610259,0.09842791,92384.0,92383.0,0.0676125]
[1764887611369,0.07545,92384.0,92383.0,0.0676125]
[1764887612755,0.01965,92384.0,92380.0,0.0108228]
[1764887612967,0.07545,92384.0,92383.0,0.01324252]
[1764887613560,0.07545,92384.0,92383.0,0.04175252]